[Event "Titled Tuesday Blitz July 18 Late 2023"]
[White "Nihal Sarin"]
[Black "Fantastic_Power"]
[WhiteFideId "25092340"]
[WhiteElo "3045"]
[BlackElo "2756"]
[Result "1-0"]
[Round "11"]
[TimeControl "180+2"]
[Date "2023.07.18"]
[WhiteClock "0:03:04"]
[BlackClock "0:01:04"]
[Board "12"]

1. a3 {[%clk 0:03:00]}  e5 {[%clk 0:02:56]} 2. c4 {[%clk 0:03:00]}  Nf6 {[%clk 0:02:51]} 3. d3 {[%clk 0:03:01]}  c6 {[%clk 0:02:46]} 4. Nf3 {[%clk 0:03:01]}  Be7 {[%clk 0:02:41]} 5. g3 {[%clk 0:03:01]}  O-O {[%clk 0:02:40]} 6. Bg2 {[%clk 0:03:01]}  Re8 {[%clk 0:02:40]} 7. O-O {[%clk 0:03:02]}  Bf8 {[%clk 0:02:40]} 8. b4 {[%clk 0:03:02]}  d5 {[%clk 0:02:39]} 9. Bb2 {[%clk 0:03:03]}  Bd6 {[%clk 0:02:38]} 10. Nbd2 {[%clk 0:03:02]}  Bg4 {[%clk 0:02:36]} 11. Rc1 {[%clk 0:03:02]}  Nbd7 {[%clk 0:02:35]} 12. h3 {[%clk 0:03:03]}  Bh5 {[%clk 0:02:34]} 13. cxd5 {[%clk 0:03:03]}  cxd5 {[%clk 0:02:34]} 14. g4 {[%clk 0:03:04]}  Bg6 {[%clk 0:02:34]} 15. Nh4 {[%clk 0:03:05]}  Qe7 {[%clk 0:02:14]} 16. Nxg6 {[%clk 0:03:05]}  hxg6 {[%clk 0:02:15]} 17. Qb3 {[%clk 0:03:05]}  Nb6 {[%clk 0:02:01]} 18. e3 {[%clk 0:03:05]}  Rac8 {[%clk 0:01:48]} 19. Rfd1 {[%clk 0:03:05]}  Qe6 {[%clk 0:01:33]} 20. Nf3 {[%clk 0:03:05]}  Nfd7 {[%clk 0:01:31]} 21. a4 {[%clk 0:03:05]}  e4 {[%clk 0:01:24]} 22. Nd4 {[%clk 0:03:03]}  Qe7 {[%clk 0:01:24]} 23. a5 {[%clk 0:03:03]}  Na8 {[%clk 0:01:21]} 24. Rxc8 {[%clk 0:03:03]}  Rxc8 {[%clk 0:01:20]} 25. Qxd5 {[%clk 0:03:04]}  Bxb4 {[%clk 0:01:21]} 26. Qxb7 {[%clk 0:03:03]}  Rb8 {[%clk 0:01:18]} 27. Qxe4 {[%clk 0:03:04]}  Qxe4 {[%clk 0:01:16]} 28. Bxe4 {[%clk 0:03:05]}  Bxa5 {[%clk 0:01:17]} 29. Ba3 {[%clk 0:03:05]}  Rc8 {[%clk 0:01:08]} 30. Nc6 {[%clk 0:03:04]}  Bd8 {[%clk 0:01:07]} 31. Nxa7 {[%clk 0:03:05]}  Rc3 {[%clk 0:01:04]} 32. Nb5 {[%clk 0:03:04]} 1-0


[Site "https://www.chess.com"]

[Event "Titled Tuesday Blitz July 18 Late 2023"]
[White "Makarian, Rudik"]
[Black "Stoyanov, Tsvetan"]
[WhiteFideId "44105681"]
[BlackFideId "2917173"]
[WhiteElo "2986"]
[BlackElo "2732"]
[Result "0-1"]
[Round "11"]
[TimeControl "180+2"]
[Date "2023.07.18"]
[WhiteClock "0:00:02"]
[BlackClock "0:00:03"]
[Board "13"]

1. d4 {[%clk 0:03:00]}  d5 {[%clk 0:03:00]} 2. c4 {[%clk 0:03:01]}  e5 {[%clk 0:03:00]} 3. Nf3 {[%clk 0:03:02]}  exd4 {[%clk 0:03:00]} 4. cxd5 {[%clk 0:03:00]}  Qxd5 {[%clk 0:02:58]} 5. Nc3 {[%clk 0:02:55]}  Bb4 {[%clk 0:02:58]} 6. Qxd4 {[%clk 0:02:51]}  Qxd4 {[%clk 0:02:58]} 7. Nxd4 {[%clk 0:02:52]}  c6 {[%clk 0:02:59]} 8. g3 {[%clk 0:02:51]}  Nf6 {[%clk 0:02:59]} 9. Bg2 {[%clk 0:02:51]}  O-O {[%clk 0:02:58]} 10. O-O {[%clk 0:02:52]}  Nbd7 {[%clk 0:02:57]} 11. Rd1 {[%clk 0:02:48]}  Nb6 {[%clk 0:02:56]} 12. Bg5 {[%clk 0:02:47]}  Nc4 {[%clk 0:02:50]} 13. Bxf6 {[%clk 0:02:40]}  gxf6 {[%clk 0:02:50]} 14. Rab1 {[%clk 0:02:28]}  Nxb2 {[%clk 0:02:17]} 15. Ne4 {[%clk 0:02:25]}  Nxd1 {[%clk 0:02:13]} 16. Rxb4 {[%clk 0:02:14]}  Rd8 {[%clk 0:02:10]} 17. e3 {[%clk 0:02:08]}  f5 {[%clk 0:02:04]} 18. Nc5 {[%clk 0:01:56]}  Nc3 {[%clk 0:02:03]} 19. Rc4 {[%clk 0:01:42]}  Nb5 {[%clk 0:01:52]} 20. Bf3 {[%clk 0:01:27]}  Nxd4 {[%clk 0:01:50]} 21. exd4 {[%clk 0:01:28]}  Be6 {[%clk 0:01:35]} 22. Rb4 {[%clk 0:01:23]}  Bd5 {[%clk 0:01:22]} 23. Bxd5 {[%clk 0:01:13]}  Rxd5 {[%clk 0:01:23]} 24. Rxb7 {[%clk 0:01:13]}  Rxd4 {[%clk 0:01:23]} 25. Rc7 {[%clk 0:01:14]}  Rc4 {[%clk 0:01:14]} 26. Nd7 {[%clk 0:01:13]}  Rc1+ {[%clk 0:01:11]} 27. Kg2 {[%clk 0:01:13]}  Rc2 {[%clk 0:01:07]} 28. a4 {[%clk 0:01:06]}  a5 {[%clk 0:01:01]} 29. Ne5 {[%clk 0:01:02]}  Rf8 {[%clk 0:00:43]} 30. Ra7 {[%clk 0:00:46]}  f6 {[%clk 0:00:38]} 31. Nf3 {[%clk 0:00:38]}  Rc5 {[%clk 0:00:34]} 32. Nd4 {[%clk 0:00:36]}  Re8 {[%clk 0:00:34]} 33. Ra6 {[%clk 0:00:31]}  Re4 {[%clk 0:00:24]} 34. Nb3 {[%clk 0:00:21]}  Rc3 {[%clk 0:00:20]} 35. Nxa5 {[%clk 0:00:21]}  Rxa4 {[%clk 0:00:17]} 36. Rxc6 {[%clk 0:00:21]}  Rxc6 {[%clk 0:00:16]} 37. Nxc6 {[%clk 0:00:22]}  Kf7 {[%clk 0:00:14]} 38. Kf3 {[%clk 0:00:20]}  Rc4 {[%clk 0:00:12]} 39. Na5 {[%clk 0:00:17]}  Rc5 {[%clk 0:00:09]} 40. Nb7 {[%clk 0:00:16]}  Rd5 {[%clk 0:00:09]} 41. g4 {[%clk 0:00:04]}  fxg4+ {[%clk 0:00:07]} 42. Kxg4 {[%clk 0:00:05]}  Ke6 {[%clk 0:00:07]} 43. Kf4 {[%clk 0:00:05]}  Kd7 {[%clk 0:00:06]} 44. Ke4 {[%clk 0:00:03]}  Kc6 {[%clk 0:00:05]} 45. f4 {[%clk 0:00:02]}  f5+ {[%clk 0:00:03]} 0-1


[Site "https://www.chess.com"]

[Event "Titled Tuesday Blitz July 18 Late 2023"]
[White "Pranav, V"]
[Black "Altman, Joshua"]
[WhiteFideId "25060783"]
[BlackFideId "426210"]
[WhiteElo "2955"]
[BlackElo "2577"]
[Result "1-0"]
[Round "11"]
[TimeControl "180+2"]
[Date "2023.07.18"]
[WhiteClock "0:01:11"]
[BlackClock "0:00:17"]
[Board "16"]

1. e4 {[%clk 0:03:00]}  e6 {[%clk 0:03:00]} 2. d4 {[%clk 0:03:00]}  d5 {[%clk 0:03:00]} 3. Nc3 {[%clk 0:03:01]}  Nf6 {[%clk 0:02:59]} 4. Bg5 {[%clk 0:03:00]}  dxe4 {[%clk 0:02:59]} 5. Nxe4 {[%clk 0:03:00]}  Nbd7 {[%clk 0:02:59]} 6. Nf3 {[%clk 0:02:59]}  Be7 {[%clk 0:02:59]} 7. Ng3 {[%clk 0:02:56]}  h6 {[%clk 0:02:55]} 8. Bxf6 {[%clk 0:02:56]}  Nxf6 {[%clk 0:02:55]} 9. c3 {[%clk 0:02:57]}  O-O {[%clk 0:02:55]} 10. Bd3 {[%clk 0:02:56]}  b6 {[%clk 0:02:55]} 11. O-O {[%clk 0:02:56]}  Bb7 {[%clk 0:02:55]} 12. Re1 {[%clk 0:02:56]}  c5 {[%clk 0:02:55]} 13. Ne4 {[%clk 0:02:47]}  Nd5 {[%clk 0:02:48]} 14. Bf1 {[%clk 0:02:41]}  Qc7 {[%clk 0:02:43]} 15. Qa4 {[%clk 0:02:36]}  a6 {[%clk 0:02:36]} 16. dxc5 {[%clk 0:02:34]}  bxc5 {[%clk 0:02:35]} 17. Rad1 {[%clk 0:02:34]}  Rad8 {[%clk 0:02:27]} 18. Ned2 {[%clk 0:02:28]}  Nf4 {[%clk 0:02:22]} 19. g3 {[%clk 0:02:20]}  Nd3 {[%clk 0:02:15]} 20. Bxd3 {[%clk 0:02:19]}  Rxd3 {[%clk 0:02:16]} 21. Ne5 {[%clk 0:02:20]}  Rd5 {[%clk 0:02:10]} 22. Ndc4 {[%clk 0:02:18]}  Rfd8 {[%clk 0:02:09]} 23. Rxd5 {[%clk 0:02:17]}  Bxd5 {[%clk 0:02:05]} 24. Na5 {[%clk 0:02:09]}  Bf6 {[%clk 0:02:02]} 25. Ng4 {[%clk 0:02:05]}  Be7 {[%clk 0:01:59]} 26. Ne3 {[%clk 0:02:05]}  Bf3 {[%clk 0:01:55]} 27. Nac4 {[%clk 0:01:57]}  Qb7 {[%clk 0:01:47]} 28. Qb3 {[%clk 0:01:56]}  Qe4 {[%clk 0:01:44]} 29. Ng2 {[%clk 0:01:49]}  Qd5 {[%clk 0:01:22]} 30. Nf4 {[%clk 0:01:45]}  Qf5 {[%clk 0:01:02]} 31. Ne5 {[%clk 0:01:40]}  Bd6 {[%clk 0:00:45]} 32. Nxf3 {[%clk 0:01:19]}  g5 {[%clk 0:00:41]} 33. Nxe6 {[%clk 0:01:14]}  Rb8 {[%clk 0:00:19]} 34. Qd1 {[%clk 0:01:12]}  Rxb2 {[%clk 0:00:16]} 35. Qxd6 {[%clk 0:01:10]}  Qxf3 {[%clk 0:00:16]} 36. Qf8+ {[%clk 0:01:10]}  Kh7 {[%clk 0:00:17]} 37. Qg7# {[%clk 0:01:11]} 1-0


[Site "https://www.chess.com"]

[Event "Titled Tuesday Blitz July 18 Late 2023"]
[White "ArtemDyachuk"]
[Black "Gadimbayli, Abdulla"]
[BlackFideId "13404938"]
[WhiteElo "2563"]
[BlackElo "2849"]
[Result "1-0"]
[Round "11"]
[TimeControl "180+2"]
[Date "2023.07.18"]
[WhiteClock "0:00:03"]
[BlackClock "0:00:09"]
[Board "18"]

1. e4 {[%clk 0:03:00]}  e5 {[%clk 0:02:58]} 2. Nf3 {[%clk 0:03:00]}  d5 {[%clk 0:02:58]} 3. Nxe5 {[%clk 0:02:52]}  Bd6 {[%clk 0:02:56]} 4. d4 {[%clk 0:02:51]}  dxe4 {[%clk 0:02:56]} 5. Nc4 {[%clk 0:02:51]}  Bf8 {[%clk 0:02:57]} 6. Nc3 {[%clk 0:02:45]}  Nf6 {[%clk 0:02:55]} 7. Bf4 {[%clk 0:02:42]}  Bb4 {[%clk 0:02:54]} 8. Ne3 {[%clk 0:02:28]}  O-O {[%clk 0:02:52]} 9. Bc4 {[%clk 0:02:22]}  Nc6 {[%clk 0:02:52]} 10. d5 {[%clk 0:02:15]}  Na5 {[%clk 0:02:53]} 11. Be2 {[%clk 0:01:59]}  Qe7 {[%clk 0:02:52]} 12. O-O {[%clk 0:01:50]}  Rd8 {[%clk 0:02:52]} 13. Nb5 {[%clk 0:01:39]}  c6 {[%clk 0:02:33]} 14. d6 {[%clk 0:01:23]}  Qd7 {[%clk 0:02:32]} 15. a3 {[%clk 0:01:21]}  cxb5 {[%clk 0:01:57]} 16. axb4 {[%clk 0:01:19]}  Nc6 {[%clk 0:01:58]} 17. Bxb5 {[%clk 0:01:18]}  a6 {[%clk 0:01:58]} 18. Ba4 {[%clk 0:01:01]}  b5 {[%clk 0:01:56]} 19. Bxb5 {[%clk 0:00:58]}  Bb7 {[%clk 0:01:56]} 20. Ba4 {[%clk 0:00:56]}  Qe6 {[%clk 0:01:55]} 21. Bb3 {[%clk 0:00:55]}  Qd7 {[%clk 0:01:55]} 22. c3 {[%clk 0:00:55]}  a5 {[%clk 0:01:55]} 23. b5 {[%clk 0:00:54]}  Na7 {[%clk 0:01:54]} 24. c4 {[%clk 0:00:51]}  Rac8 {[%clk 0:01:53]} 25. Qd4 {[%clk 0:00:46]}  Nh5 {[%clk 0:01:52]} 26. Bg5 {[%clk 0:00:44]}  f6 {[%clk 0:01:27]} 27. Qxa7 {[%clk 0:00:44]}  fxg5 {[%clk 0:01:28]} 28. Rxa5 {[%clk 0:00:44]}  Kh8 {[%clk 0:01:22]} 29. c5 {[%clk 0:00:43]}  Nf4 {[%clk 0:01:14]} 30. c6 {[%clk 0:00:43]}  Qxd6 {[%clk 0:01:13]} 31. cxb7 {[%clk 0:00:41]}  Rb8 {[%clk 0:01:14]} 32. Ra6 {[%clk 0:00:33]}  Qb4 {[%clk 0:00:54]} 33. Rc6 {[%clk 0:00:29]}  Qxb3 {[%clk 0:00:43]} 34. Qxb8 {[%clk 0:00:26]}  Rxb8 {[%clk 0:00:44]} 35. Rc8+ {[%clk 0:00:25]}  Qg8 {[%clk 0:00:44]} 36. Rxg8+ {[%clk 0:00:13]}  Kxg8 {[%clk 0:00:45]} 37. g3 {[%clk 0:00:07]}  Nd3 {[%clk 0:00:43]} 38. Ra1 {[%clk 0:00:05]}  Rxb7 {[%clk 0:00:43]} 39. Nc4 {[%clk 0:00:04]}  h5 {[%clk 0:00:20]} 40. Ra8+ {[%clk 0:00:02]}  Kh7 {[%clk 0:00:20]} 41. b6 {[%clk 0:00:02]}  Kg6 {[%clk 0:00:15]} 42. Ra7 {[%clk 0:00:03]}  Nc5 {[%clk 0:00:16]} 43. b4 {[%clk 0:00:02]}  Rb8 {[%clk 0:00:04]} 44. bxc5 {[%clk 0:00:01]}  h4 {[%clk 0:00:04]} 45. c6 {[%clk 0:00:02]}  h3 {[%clk 0:00:05]} 46. c7 {[%clk 0:00:01]}  Rf8 {[%clk 0:00:05]} 47. Kf1 {[%clk 0:00:01]}  e3 {[%clk 0:00:05]} 48. Nxe3 {[%clk 0:00:01]}  Rf6 {[%clk 0:00:04]} 49. Ke2 {[%clk 0:00:02]}  Rxb6 {[%clk 0:00:05]} 50. c8=Q {[%clk 0:00:02]}  Rb2+ {[%clk 0:00:06]} 51. Kf3 {[%clk 0:00:02]}  Kh5 {[%clk 0:00:07]} 52. Qg4+ {[%clk 0:00:02]}  Kg6 {[%clk 0:00:08]} 53. Qf5+ {[%clk 0:00:02]}  Kh6 {[%clk 0:00:09]} 54. Ra6+ {[%clk 0:00:03]}  Kh5 {[%clk 0:00:09]} 55. Qg6# {[%clk 0:00:03]} 1-0


[Site "https://www.chess.com"]

[Event "Titled Tuesday Blitz July 18 Late 2023"]
[White "Meshkovs, Nikita"]
[Black "Glavina, Pablo"]
[WhiteFideId "11602740"]
[BlackFideId "100234"]
[WhiteElo "2772"]
[BlackElo "2498"]
[Result "1-0"]
[Round "11"]
[TimeControl "180+2"]
[Date "2023.07.18"]
[WhiteClock "0:01:30"]
[BlackClock "0:01:29"]
[Board "19"]

1. a4 {[%clk 0:03:00]}  d5 {[%clk 0:02:57]} 2. g3 {[%clk 0:02:58]}  e5 {[%clk 0:02:58]} 3. Bg2 {[%clk 0:02:58]}  Nf6 {[%clk 0:02:56]} 4. d3 {[%clk 0:02:58]}  Bc5 {[%clk 0:02:56]} 5. c3 {[%clk 0:02:51]}  O-O {[%clk 0:02:55]} 6. b4 {[%clk 0:02:36]}  Bd6 {[%clk 0:02:54]} 7. Nd2 {[%clk 0:02:33]}  a5 {[%clk 0:02:54]} 8. b5 {[%clk 0:02:29]}  b6 {[%clk 0:02:54]} 9. Nc4 {[%clk 0:02:24]}  Bb7 {[%clk 0:02:46]} 10. Nxd6 {[%clk 0:02:24]}  Qxd6 {[%clk 0:02:47]} 11. Ba3 {[%clk 0:02:23]}  c5 {[%clk 0:02:43]} 12. bxc6 {[%clk 0:02:23]}  Qxc6 {[%clk 0:02:43]} 13. Bxf8 {[%clk 0:02:23]}  Qxc3+ {[%clk 0:02:44]} 14. Kf1 {[%clk 0:02:23]}  Kxf8 {[%clk 0:02:45]} 15. Rc1 {[%clk 0:02:22]}  Qb4 {[%clk 0:02:45]} 16. Rc7 {[%clk 0:02:16]}  Bc6 {[%clk 0:02:39]} 17. Nf3 {[%clk 0:02:07]}  Qd6 {[%clk 0:02:38]} 18. Rc8+ {[%clk 0:02:05]}  Ke7 {[%clk 0:02:34]} 19. d4 {[%clk 0:01:57]}  Qd7 {[%clk 0:01:50]} 20. Rh8 {[%clk 0:01:52]}  Bxa4 {[%clk 0:01:39]} 21. Qa1 {[%clk 0:01:51]}  e4 {[%clk 0:01:36]} 22. Qa3+ {[%clk 0:01:32]}  Ke6 {[%clk 0:01:29]} 23. Bh3+ {[%clk 0:01:30]} 1-0


[Site "https://www.chess.com"]

[Event "Titled Tuesday Blitz July 18 Late 2023"]
[White "Bartel, Mateusz"]
[Black "Chor, Kevin"]
[WhiteFideId "1112635"]
[BlackFideId "2090740"]
[WhiteElo "2835"]
[BlackElo "2542"]
[Result "1-0"]
[Round "11"]
[TimeControl "180+2"]
[Date "2023.07.18"]
[WhiteClock "0:00:15"]
[BlackClock "0:00:00"]
[Board "20"]

1. Nf3 {[%clk 0:02:59]}  c5 {[%clk 0:03:00]} 2. b3 {[%clk 0:02:57]}  Nc6 {[%clk 0:02:58]} 3. Bb2 {[%clk 0:02:57]}  e6 {[%clk 0:02:59]} 4. g3 {[%clk 0:02:41]}  Nf6 {[%clk 0:02:59]} 5. Bg2 {[%clk 0:02:42]}  Be7 {[%clk 0:02:59]} 6. O-O {[%clk 0:02:43]}  O-O {[%clk 0:02:59]} 7. d4 {[%clk 0:02:41]}  b6 {[%clk 0:02:51]} 8. c4 {[%clk 0:02:40]}  cxd4 {[%clk 0:02:34]} 9. Nxd4 {[%clk 0:02:39]}  Bb7 {[%clk 0:02:35]} 10. Nxc6 {[%clk 0:02:37]}  Bxc6 {[%clk 0:02:33]} 11. Bxc6 {[%clk 0:02:38]}  dxc6 {[%clk 0:02:34]} 12. Nc3 {[%clk 0:02:36]}  Qc7 {[%clk 0:02:29]} 13. Qc2 {[%clk 0:02:33]}  Rfd8 {[%clk 0:02:17]} 14. Rad1 {[%clk 0:02:30]}  h6 {[%clk 0:02:15]} 15. Ne4 {[%clk 0:02:28]}  Nxe4 {[%clk 0:02:04]} 16. Qxe4 {[%clk 0:02:29]}  c5 {[%clk 0:02:03]} 17. Be5 {[%clk 0:02:23]}  Qc8 {[%clk 0:01:57]} 18. Qg4 {[%clk 0:01:55]}  f6 {[%clk 0:01:33]} 19. Bc3 {[%clk 0:01:35]}  Qc6 {[%clk 0:01:28]} 20. f3 {[%clk 0:01:30]}  Rxd1 {[%clk 0:01:20]} 21. Rxd1 {[%clk 0:01:31]}  Rd8 {[%clk 0:01:20]} 22. Rxd8+ {[%clk 0:01:30]}  Bxd8 {[%clk 0:01:21]} 23. Kf1 {[%clk 0:01:29]}  Kf8 {[%clk 0:01:16]} 24. Qg6 {[%clk 0:01:28]}  Qd6 {[%clk 0:01:09]} 25. Ke1 {[%clk 0:01:28]}  a6 {[%clk 0:01:07]} 26. Qe4 {[%clk 0:01:28]}  b5 {[%clk 0:00:59]} 27. Qb7 {[%clk 0:01:08]}  bxc4 {[%clk 0:00:52]} 28. bxc4 {[%clk 0:01:08]}  h5 {[%clk 0:00:52]} 29. a4 {[%clk 0:00:57]}  h4 {[%clk 0:00:45]} 30. Kf2 {[%clk 0:00:37]}  Bc7 {[%clk 0:00:39]} 31. f4 {[%clk 0:00:37]}  g5 {[%clk 0:00:34]} 32. Bxf6 {[%clk 0:00:29]}  hxg3+ {[%clk 0:00:34]} 33. hxg3 {[%clk 0:00:28]}  gxf4 {[%clk 0:00:34]} 34. g4 {[%clk 0:00:17]}  Kf7 {[%clk 0:00:17]} 35. g5 {[%clk 0:00:17]}  f3 {[%clk 0:00:09]} 36. Qxf3 {[%clk 0:00:17]}  Qh2+ {[%clk 0:00:08]} 37. Ke3 {[%clk 0:00:17]}  Qg1+ {[%clk 0:00:07]} 38. Kd2 {[%clk 0:00:17]}  Kg8 {[%clk 0:00:00]} 39. Qe4 {[%clk 0:00:15]} 1-0


[Site "https://www.chess.com"]

[Event "Titled Tuesday Blitz July 18 Late 2023"]
[White "Jimenez Almeida, Luis David"]
[Black "Nasuta, Grzegorz"]
[WhiteFideId "22242244"]
[BlackFideId "1141686"]
[WhiteElo "2598"]
[BlackElo "2735"]
[Result "1-0"]
[Round "11"]
[TimeControl "180+2"]
[Date "2023.07.18"]
[WhiteClock "0:00:34"]
[BlackClock "0:00:02"]
[Board "24"]

1. e4 {[%clk 0:03:00]}  c5 {[%clk 0:02:58]} 2. Nc3 {[%clk 0:03:00]}  a6 {[%clk 0:02:56]} 3. Nge2 {[%clk 0:02:57]}  d6 {[%clk 0:02:55]} 4. d4 {[%clk 0:02:57]}  cxd4 {[%clk 0:02:55]} 5. Nxd4 {[%clk 0:02:58]}  e6 {[%clk 0:02:55]} 6. g3 {[%clk 0:02:51]}  b5 {[%clk 0:02:54]} 7. Bg2 {[%clk 0:02:51]}  Bb7 {[%clk 0:02:55]} 8. O-O {[%clk 0:02:50]}  b4 {[%clk 0:02:32]} 9. Na4 {[%clk 0:02:43]}  Nf6 {[%clk 0:02:32]} 10. Re1 {[%clk 0:02:42]}  Qc7 {[%clk 0:02:08]} 11. c3 {[%clk 0:02:33]}  bxc3 {[%clk 0:01:59]} 12. Nxc3 {[%clk 0:02:34]}  Be7 {[%clk 0:01:57]} 13. Bg5 {[%clk 0:02:24]}  O-O {[%clk 0:01:52]} 14. Rc1 {[%clk 0:02:23]}  Qd7 {[%clk 0:01:49]} 15. Na4 {[%clk 0:02:08]}  Ra7 {[%clk 0:01:06]} 16. b3 {[%clk 0:01:49]}  Nc6 {[%clk 0:00:28]} 17. Nb6 {[%clk 0:01:47]}  Qc7 {[%clk 0:00:14]} 18. Nxc6 {[%clk 0:01:18]}  Bxc6 {[%clk 0:00:15]} 19. e5 {[%clk 0:01:18]}  Qxb6 {[%clk 0:00:03]} 20. Rxc6 {[%clk 0:01:16]}  Qb5 {[%clk 0:00:03]} 21. exf6 {[%clk 0:01:13]}  gxf6 {[%clk 0:00:04]} 22. Bh6 {[%clk 0:01:12]}  Qf5 {[%clk 0:00:03]} 23. Bxf8 {[%clk 0:01:10]}  Bxf8 {[%clk 0:00:03]} 24. Qc2 {[%clk 0:01:05]}  Qxc2 {[%clk 0:00:03]} 25. Rxc2 {[%clk 0:01:04]}  d5 {[%clk 0:00:04]} 26. f4 {[%clk 0:01:02]}  f5 {[%clk 0:00:04]} 27. Rec1 {[%clk 0:00:56]}  Kg7 {[%clk 0:00:04]} 28. Rc7 {[%clk 0:00:55]}  Ra8 {[%clk 0:00:02]} 29. Rc8 {[%clk 0:00:55]}  Rxc8 {[%clk 0:00:02]} 30. Rxc8 {[%clk 0:00:55]}  Bb4 {[%clk 0:00:03]} 31. Bf1 {[%clk 0:00:54]}  a5 {[%clk 0:00:03]} 32. Kf2 {[%clk 0:00:52]}  Kf6 {[%clk 0:00:04]} 33. Kf3 {[%clk 0:00:52]}  Ke7 {[%clk 0:00:05]} 34. Rh8 {[%clk 0:00:50]}  Bc3 {[%clk 0:00:02]} 35. Rxh7 {[%clk 0:00:51]}  Kf8 {[%clk 0:00:03]} 36. Bd3 {[%clk 0:00:43]}  Kg8 {[%clk 0:00:03]} 37. Rh5 {[%clk 0:00:44]}  Kg7 {[%clk 0:00:03]} 38. g4 {[%clk 0:00:43]}  fxg4+ {[%clk 0:00:02]} 39. Kxg4 {[%clk 0:00:44]}  f5+ {[%clk 0:00:02]} 40. Kf3 {[%clk 0:00:40]}  Bf6 {[%clk 0:00:02]} 41. Rh3 {[%clk 0:00:39]}  Kf7 {[%clk 0:00:02]} 42. Rg3 {[%clk 0:00:38]}  Be7 {[%clk 0:00:02]} 43. Rg1 {[%clk 0:00:38]}  Bd6 {[%clk 0:00:03]} 44. Rc1 {[%clk 0:00:38]}  Ke7 {[%clk 0:00:03]} 45. h4 {[%clk 0:00:36]}  Bb4 {[%clk 0:00:03]} 46. h5 {[%clk 0:00:36]}  Kf7 {[%clk 0:00:04]} 47. Rh1 {[%clk 0:00:35]}  e5 {[%clk 0:00:02]} 48. fxe5 {[%clk 0:00:34]} 1-0


[Site "https://www.chess.com"]

[Event "Titled Tuesday Blitz July 18 Late 2023"]
[White "Haydon, David L"]
[Black "Hajiyev, Kanan"]
[WhiteFideId "415405"]
[BlackFideId "13404148"]
[WhiteElo "2706"]
[BlackElo "2586"]
[Result "1/2-1/2"]
[Round "11"]
[TimeControl "180+2"]
[Date "2023.07.18"]
[WhiteClock "0:00:28"]
[BlackClock "0:00:07"]
[Board "25"]

1. d4 {[%clk 0:03:00]}  d5 {[%clk 0:03:00]} 2. Nf3 {[%clk 0:02:59]}  Nf6 {[%clk 0:03:00]} 3. Bf4 {[%clk 0:02:59]}  c5 {[%clk 0:03:00]} 4. e3 {[%clk 0:02:59]}  cxd4 {[%clk 0:03:01]} 5. exd4 {[%clk 0:02:59]}  Nc6 {[%clk 0:03:02]} 6. c3 {[%clk 0:02:59]}  Bg4 {[%clk 0:03:02]} 7. Be2 {[%clk 0:02:58]}  e6 {[%clk 0:03:02]} 8. Nbd2 {[%clk 0:02:58]}  Bd6 {[%clk 0:03:03]} 9. Bg3 {[%clk 0:02:58]}  O-O {[%clk 0:03:03]} 10. O-O {[%clk 0:02:58]}  Bxg3 {[%clk 0:03:03]} 11. hxg3 {[%clk 0:02:58]}  Rb8 {[%clk 0:03:03]} 12. a4 {[%clk 0:02:58]}  Qc7 {[%clk 0:03:02]} 13. Ne5 {[%clk 0:02:54]}  Bxe2 {[%clk 0:02:52]} 14. Qxe2 {[%clk 0:02:54]}  Nxe5 {[%clk 0:02:53]} 15. dxe5 {[%clk 0:02:53]}  Nd7 {[%clk 0:02:54]} 16. f4 {[%clk 0:02:53]}  Qb6+ {[%clk 0:02:53]} 17. Kh2 {[%clk 0:02:52]}  Qxb2 {[%clk 0:02:52]} 18. Qd3 {[%clk 0:02:37]}  Rfc8 {[%clk 0:02:42]} 19. Rac1 {[%clk 0:02:33]}  Nc5 {[%clk 0:02:33]} 20. Qe3 {[%clk 0:02:22]}  Nxa4 {[%clk 0:02:22]} 21. c4 {[%clk 0:02:19]}  d4 {[%clk 0:02:05]} 22. Qd3 {[%clk 0:02:16]}  b5 {[%clk 0:01:59]} 23. Rc2 {[%clk 0:02:08]}  Nc5 {[%clk 0:01:34]} 24. Rxb2 {[%clk 0:01:57]}  Nxd3 {[%clk 0:01:34]} 25. Rxb5 {[%clk 0:01:57]}  Rxb5 {[%clk 0:01:34]} 26. cxb5 {[%clk 0:01:57]}  h5 {[%clk 0:01:23]} 27. Nf3 {[%clk 0:01:55]}  Rc4 {[%clk 0:01:14]} 28. Rd1 {[%clk 0:01:51]}  Nf2 {[%clk 0:01:14]} 29. Rxd4 {[%clk 0:01:43]}  Rc1 {[%clk 0:01:07]} 30. g4 {[%clk 0:01:42]}  Nxg4+ {[%clk 0:00:55]} 31. Kg3 {[%clk 0:01:41]}  f6 {[%clk 0:00:44]} 32. exf6 {[%clk 0:01:38]}  gxf6 {[%clk 0:00:45]} 33. Rd8+ {[%clk 0:01:38]}  Kf7 {[%clk 0:00:45]} 34. Rd7+ {[%clk 0:01:38]}  Ke8 {[%clk 0:00:45]} 35. Rxa7 {[%clk 0:01:38]}  Rb1 {[%clk 0:00:42]} 36. Rb7 {[%clk 0:01:37]}  Rb2 {[%clk 0:00:41]} 37. Nd4 {[%clk 0:01:36]}  e5 {[%clk 0:00:34]} 38. fxe5 {[%clk 0:01:33]}  fxe5 {[%clk 0:00:35]} 39. Nf5 {[%clk 0:01:31]}  Rb3+ {[%clk 0:00:28]} 40. Kh4 {[%clk 0:01:30]}  Ne3 {[%clk 0:00:26]} 41. Nd6+ {[%clk 0:01:28]}  Kd8 {[%clk 0:00:21]} 42. Kg5 {[%clk 0:01:26]}  Nxg2 {[%clk 0:00:19]} 43. Kf6 {[%clk 0:01:25]}  h4 {[%clk 0:00:13]} 44. b6 {[%clk 0:01:21]}  h3 {[%clk 0:00:13]} 45. Nf7+ {[%clk 0:01:16]}  Kc8 {[%clk 0:00:12]} 46. Nd6+ {[%clk 0:01:14]}  Kd8 {[%clk 0:00:13]} 47. Ke6 {[%clk 0:01:13]}  Nf4+ {[%clk 0:00:12]} 48. Kxe5 {[%clk 0:01:13]}  h2 {[%clk 0:00:10]} 49. Rh7 {[%clk 0:01:12]}  Nh3 {[%clk 0:00:10]} 50. Nf7+ {[%clk 0:00:58]}  Kc8 {[%clk 0:00:07]} 51. Nd6+ {[%clk 0:00:57]}  Kd8 {[%clk 0:00:07]} 52. Nb7+ {[%clk 0:00:49]}  Ke8 {[%clk 0:00:07]} 53. Nd6+ {[%clk 0:00:48]}  Kf8 {[%clk 0:00:08]} 54. Kf6 {[%clk 0:00:33]}  Rf3+ {[%clk 0:00:07]} 55. Nf5 {[%clk 0:00:33]}  Rxf5+ {[%clk 0:00:07]} 56. Kxf5 {[%clk 0:00:34]}  h1=Q {[%clk 0:00:07]} 57. b7 {[%clk 0:00:34]}  Qb1+ {[%clk 0:00:04]} 58. Kg4 {[%clk 0:00:31]}  Nf2+ {[%clk 0:00:04]} 59. Kf3 {[%clk 0:00:31]}  Qf5+ {[%clk 0:00:03]} 60. Kg2 {[%clk 0:00:29]}  Qxh7 {[%clk 0:00:02]} 61. b8=Q+ {[%clk 0:00:28]}  Kg7 {[%clk 0:00:03]} 62. Kxf2 {[%clk 0:00:29]}  Kh6 {[%clk 0:00:03]} 63. Qf4+ {[%clk 0:00:28]}  Kg6 {[%clk 0:00:03]} 64. Qg4+ {[%clk 0:00:28]}  Kf6 {[%clk 0:00:04]} 65. Qd4+ {[%clk 0:00:29]}  Kg6 {[%clk 0:00:03]} 66. Qd6+ {[%clk 0:00:28]}  Kg7 {[%clk 0:00:04]} 67. Qe7+ {[%clk 0:00:28]}  Kg8 {[%clk 0:00:05]} 68. Qe8+ {[%clk 0:00:28]}  Kg7 {[%clk 0:00:06]} 69. Kg3 {[%clk 0:00:28]}  Qg6+ {[%clk 0:00:06]} 70. Qxg6+ {[%clk 0:00:28]}  Kxg6 {[%clk 0:00:07]} 1/2-1/2


[Site "https://www.chess.com"]